fUSD/lending_fUSD_20240321
["ID","MTS","AMOUNT","RATE_DAILY","PERIOD"]
[320022979,1711060243337,-535.25,0.00021999,2]
[320022980,1711060243346,-217.35409848,0.00021999,2]
[320022981,1711060243356,-500.0,0.00021999,2]
[320022982,1711060243366,-500.0,0.00021999,2]
[320022983,1711060243375,-500.0,0.00021999,2]
[320022984,1711060243385,-542.91,0.00021999,2]
[320022985,1711060243394,-503.31,0.00021999,2]
[320022986,1711060243405,-500.0,0.00021999,2]
[320022987,1711060243415,-522.54315642,0.00021999,2]
[320022988,1711060243426,-500.0,0.00021999,2]
[320022989,1711060243438,-500.0,0.00021999,2]
[320022990,1711060243447,-500.0,0.00021999,2]
[320022991,1711060243456,-500.0,0.00021999,2]
[320022992,1711060243465,-532.61,0.00021999,2]
[320022993,1711060243475,-500.0,0.00021999,2]
[320022994,1711060243484,-500.0,0.00021999,2]
[320022995,1711060243493,-500.0,0.00021999,2]
[320022996,1711060243503,-500.0,0.00021999,2]
[320022997,1711060243513,-500.0,0.00021999,2]
[320022998,1711060243527,-500.0,0.00021999,2]
[320022999,1711060243536,-500.0,0.00021999,2]
[320023000,1711060243546,-500.0,0.00021999,2]
[320023001,1711060243555,-594.04,0.00021999,2]
[320023002,1711060243565,-500.0,0.00021999,2]
[320023003,1711060243574,-235.84550442,0.00021999,2]
[320023004,1711060243583,-500.0,0.00021999,2]
[320023005,1711060243592,-646.76835103,0.00021999,2]
[320023006,1711060243602,-500.0,0.00021999,2]
[320023007,1711060243611,-646.23,0.00021999,2]
[320023008,1711060243910,-500.0,0.00021999,2]
[320023009,1711060243920,-500.0,0.00021999,2]
[320023010,1711060243929,-500.0,0.00021999,2]
[320023011,1711060243939,-500.0,0.00021999,2]
[320023012,1711060243949,-500.0,0.00021999,2]
[320023013,1711060243959,-500.0,0.00021999,2]
[320023014,1711060243968,-500.0,0.00021999,2]
[320023015,1711060243977,-500.0,0.00021999,2]
[320023016,1711060243986,-587.35684573,0.00021999,2]
[320023017,1711060243995,-500.0,0.00021999,2]
[320023018,1711060244004,-500.0,0.00021999,2]
[320023019,1711060244015,-500.0,0.00021999,2]
[320023020,1711060244024,-500.0,0.00021999,2]
[320023021,1711060244034,-313.18900649,0.00021999,10]
[320023022,1711060244043,-500.0,0.00021999,2]
[320023023,1711060244054,-583.76931826,0.00021999,2]
[320023024,1711060244066,-500.0,0.00021999,2]
[320023025,1711060244084,-239.73265377,0.00021999,2]
[320023026,1711060244105,-500.0,0.00021999,2]
[320023027,1711060244114,-817.47,0.00021999,2]
[320023028,1711060244124,-626.59,0.00021999,2]
[320023029,1711060244133,-500.0,0.00021999,2]
[320023030,1711060244143,-500.0,0.00021999,2]
[320023031,1711060244152,-500.0,0.00021999,2]
[320023032,1711060244161,-500.0,0.00021999,2]
[320023033,1711060244172,-980.15,0.00021999,2]
[320023034,1711060244181,-5576.69,0.00021999,2]
[320023035,1711060244190,-500.0,0.00021999,2]
[320023036,1711060244199,-6751.57,0.00021999,2]
[320023037,1711060244209,-507.9939676,0.00021999,2]
[320023038,1711060244219,-500.0,0.00021999,2]
[320023039,1711060244229,-627.87,0.00021999,2]
[320023040,1711060244238,-2924.36,0.00021999,2]
[320023041,1711060244248,-762.44,0.00021999,2]
[320023042,1711060244259,-500.0,0.00021999,2]
[320023043,1711060244278,-500.0,0.00021999,2]
[320023044,1711060244288,-4923.59,0.00021999,2]
[320023045,1711060244297,-500.0,0.00021999,2]
[320023046,1711060244307,-1706.55,0.00021999,2]
[320023047,1711060244316,-1263.86,0.00021999,2]
[320023048,1711060244325,-500.0,0.00021999,2]
[320023049,1711060244335,-500.0,0.00021999,2]
[320023050,1711060244343,-2853.45,0.00021999,2]
[320023051,1711060244353,-500.0,0.00021999,2]
[320023052,1711060244362,-500.0,0.00021999,2]
[320023053,1711060244371,-237.88150293,0.00021999,2]
[320023054,1711060244381,-500.0,0.00021999,2]
[320023055,1711060244391,-500.0,0.00021999,2]
[320023056,1711060244400,-500.0,0.00021999,2]
[320023057,1711060244410,-643.16,0.00021999,2]
[320023058,1711060244421,-3034.22,0.00021999,2]
[320023059,1711060244430,-2620.73,0.00021999,2]
[320023060,1711060244440,-1969.54,0.00021999,2]
[320023061,1711060244450,-500.0,0.00021999,2]
[320023062,1711060244461,-906.16,0.00021999,2]
[320023063,1711060244471,-478424.902128,0.00022,2]
[320023064,1711060244847,-793.14685104,0.00022,2]
[320023065,1711060244877,-459.07027241,0.00022,2]
[320023066,1711060244893,-2802.73991184,0.00022,2]
[320023067,1711060245010,-4027.24631428,0.00022,2]
[320023068,1711060245021,-442.64201041,0.00022,2]
[320023069,1711060245038,-294.78324167,0.00022,2]
[320023073,1711060245519,-211.5479,0.000219,2]
[320023074,1711060245529,-6373.91626,0.00022,2]
[320023075,1711060245541,-8843.92475302,0.00022,2]
[320023076,1711060245552,-619.89790438,0.00022,2]
[320023077,1711060245578,-161357.92184078,0.00022,2]
[320023078,1711060245590,-10023.77322503,0.00022,2]
[320023079,1711060245695,-1472.81496494,0.00022,2]
[320023080,1711060245755,-299.07844765,0.00022,2]
[320023109,1711061431589,-150.33,0.00018924,2]
[320023110,1711061431598,-155.44710078,0.00020667,2]
[320023111,1711061431608,-992.52539419,0.00020766,2]
[320023112,1711061431620,-868.242415,0.00020766,2]
[320023113,1711061431648,-708.91628298,0.00020766,2]
[320023114,1711061431660,-2784.03195324,0.00020766,2]
[320023115,1711061431670,-1000.0,0.00020767,2]
[320023116,1711061431680,-200.0,0.00020767,2]
[320023117,1711061431689,-500.0,0.00020767,2]
[320023118,1711061431699,-250.0,0.00020767,2]
[320023119,1711061431709,-513.96804676,0.0002077,2]
[320023120,1711061431764,-2237.03195324,0.0002077,2]
[320023121,1711061431774,-572.56,0.00020774,2]
[320023122,1711061431784,-488.18900363,0.00020781,2]
[320023123,1711061431794,-550.65236727,0.00020781,2]
[320023124,1711061431805,-320.0,0.00020803,2]
[320023125,1711061431815,-1221.17834876,0.00020817,2]
[320023126,1711061431826,-2706.93772065,0.00020817,2]
[320023127,1711061431837,-265.04004128,0.00020817,2]
[320023128,1711061431848,-2265.4954582,0.00020817,2]
[320023129,1711061431860,-951.33563504,0.00020817,2]
[320023130,1711061431876,-354.05388547,0.00020817,2]
[320023131,1711061431887,-1278.1211566,0.00020817,2]
[320023132,1711061431906,-2695.6829457,0.00020817,2]
[320023133,1711061431918,-743.27797519,0.00020817,2]
[320023134,1711061431935,-11388.87683311,0.00020817,2]
[320023135,1711061431945,-250.0,0.00020842,2]
[320023136,1711061431955,-165.31,0.00020973,2]
[320023137,1711061431964,-499.99,0.00020973,2]
[320023138,1711061431974,-150.0,0.00021014,2]
[320023139,1711061431983,-1699.73206548,0.00021096,2]
[320023177,1711061437603,-299.38793452,0.00021096,2]
[320023179,1711061437614,-176.37,0.00021122,2]
[320023181,1711061437623,-24.24206548,0.00021337,2]
[320023183,1711061437635,-141.06793452,0.00021337,2]
[320023185,1711061437646,-150.33,0.00021454,2]
[320023187,1711061437657,-165.31,0.00021702,2]
[320023189,1711061437669,-150.0,0.00021739,2]
[320023191,1711061437681,-393.18006544,0.000218,2]
[320023202,1711061437774,-4030.40653456,0.000218,2]
[320023204,1711061437783,-156.95243742,0.000218,2]
[320023206,1711061437793,-1735.9298,0.000218,2]
[320023208,1711061437802,-1000.0,0.000218,2]
[320023210,1711061437812,-2500.0,0.000218,2]
[320023212,1711061437821,-336.92394133,0.00021889,2]
[320023214,1711061437830,-336.92394133,0.00021889,2]
[320023216,1711061437840,-336.92394133,0.00021889,2]
[320023218,1711061437849,-336.92394133,0.00021889,2]
[320023220,1711061437858,-336.92394133,0.00021889,2]
[320023222,1711061437867,-336.92394133,0.00021889,2]
[320023224,1711061437876,-336.92394133,0.00021889,2]
[320023226,1711061437886,-336.92394133,0.00021889,2]
[320023228,1711061437896,-509.36,0.00021889,3]
[320023230,1711061437905,-254.68,0.00021889,3]
[320023232,1711061437913,-764.06,0.00021889,3]
[320023233,1711061437922,-336.92394133,0.0002189,2]
[320023235,1711061437932,-336.92394133,0.0002189,2]
[320023237,1711061437941,-336.92394133,0.0002189,2]
[320023239,1711061437950,-336.92394133,0.0002189,2]
[320023241,1711061437959,-336.92394133,0.0002189,2]
[320023243,1711061437968,-336.92394133,0.0002189,2]
[320023245,1711061437978,-336.92394133,0.0002189,2]
[320023247,1711061437987,-336.92394133,0.0002189,2]
[320023249,1711061437996,-336.92394133,0.0002189,2]
[320023252,1711061438005,-336.92394133,0.0002189,2]
[320023255,1711061438015,-336.92394133,0.0002189,2]
[320023257,1711061438024,-336.92394133,0.0002189,2]
[320023259,1711061438033,-108176.9098,0.00021899,2]
[320023260,1711061438043,-366.34266933,0.00021899,2]
[320023263,1711061438052,-264.85913777,0.00021899,2]
[320023265,1711061438061,-1000.0,0.000219,2]
[320023267,1711061438071,-46710.6089,0.000219,2]
[320023269,1711061438082,-1441.02346872,0.000219,2]
[320023271,1711061438092,-500.0,0.000219,2]
[320023273,1711061438101,-173.7894519,0.000219,2]
[320023275,1711061438111,-20423.05294276,0.000219,2]
[320023280,1711061438128,-1016.16904659,0.000219,2]
[320023283,1711061438140,-463.69195257,0.000219,2]
[320023286,1711061438154,-3187.64020718,0.000219,2]
[320023441,1711061439683,-1576.9379362,0.000219,2]
[320023445,1711061439741,-67478.95898749,0.000219,2]
[320023446,1711061439752,-5853.54892721,0.000219,2]
[320023447,1711061439761,-135.3490504,0.000219,2]
[320023448,1711061439809,-448.0840085,0.000219,2]
[320023449,1711061439818,-500.0,0.00021918,3]
[320023450,1711061439828,-250.0,0.00021918,2]
[320023451,1711061439837,-239.16,0.00021918,10]
[320023452,1711061439847,-234.032207,0.00021998,2]
[320023453,1711061439856,-303.84720435,0.00021999,2]
[320023454,1711061439866,-3455.36042544,0.00021999,2]
[320023455,1711061439878,-386.11009919,0.00021999,2]
[320023456,1711061439888,-2162.12566253,0.00021999,2]
[320023457,1711061439897,-500.0,0.00021999,2]
[320023458,1711061439909,-500.0,0.00021999,2]
[320023459,1711061439920,-500.0,0.00021999,2]
[320023460,1711061439929,-500.0,0.00021999,2]
[320023461,1711061439939,-205.8,0.00021999,2]
[320023462,1711061439951,-161.71,0.00021999,2]
[320023463,1711061439960,-355.86,0.00021999,2]
[320023464,1711061439970,-450.92,0.00021999,2]
[320023465,1711061439980,-500.0,0.00021999,2]
[320023466,1711061439990,-500.0,0.00021999,2]
[320023467,1711061439999,-500.0,0.00021999,2]
[320023468,1711061440008,-500.0,0.00021999,2]
[320023469,1711061440023,-500.0,0.00021999,2]
[320023470,1711061440033,-1151.31,0.00021999,2]
[320023471,1711061440042,-512.95,0.00021999,2]
[320023472,1711061440052,-500.0,0.00021999,2]
[320023473,1711061440061,-500.0,0.00021999,2]
[320023474,1711061440072,-500.0,0.00021999,2]
[320023475,1711061440082,-500.0,0.00021999,2]
[320023476,1711061440092,-500.0,0.00021999,2]
[320023477,1711061440101,-500.0,0.00021999,2]
[320023478,1711061440111,-500.0,0.00021999,2]
[320023479,1711061440121,-500.0,0.00021999,2]
[320023480,1711061440131,-594.28477885,0.00021999,2]
[320023481,1711061440140,-500.0,0.00021999,2]
[320023482,1711061440154,-939.31,0.00021999,2]
[320023483,1711061440163,-6470.25,0.00021999,2]
[320023484,1711061440173,-226.91413943,0.00021999,2]
[320023485,1711061440186,-4074.00630847,0.00021999,2]
[320023486,1711061440198,-1043.4095521,0.00021999,2]
[320023487,1711061440213,-500.0,0.00021999,2]
[320023488,1711061440222,-616.36659624,0.00021999,2]
[320023489,1711061440234,-114.30340376,0.00021999,2]
[320023490,1711061440244,-2380.49695575,0.00021999,2]
[320023491,1711061440258,-422.01304425,0.00021999,2]
[320023492,1711061440268,-500.0,0.00021999,2]
[320023493,1711061440280,-89.39096389,0.00021999,2]
[320023495,1711061440294,-410.60903611,0.00021999,2]
[320023496,1711061440303,-411.22099482,0.00021999,2]
[320023497,1711061440321,-4307.21900518,0.00021999,2]
[320023498,1711061440331,-500.0,0.00021999,2]
[320023499,1711061440341,-500.0,0.00021999,2]
[320023500,1711061440351,-728.75,0.00021999,2]
[320023501,1711061440362,-1635.44,0.00021999,2]
[320023502,1711061440371,-1211.2,0.00021999,2]
[320023503,1711061440382,-250.0,0.00021999,2]
[320023504,1711061440391,-2278.8,0.00021999,2]
[320023505,1711061440406,-500.0,0.00021999,2]
[320023506,1711061440416,-500.0,0.00021999,2]
[320023507,1711061440426,-500.0,0.00021999,2]
[320023508,1711061440436,-500.0,0.00021999,2]
[320023509,1711061440446,-500.0,0.00021999,2]
[320023510,1711061440458,-500.0,0.00021999,2]
[320023511,1711061440470,-500.0,0.00021999,2]
[320023512,1711061440480,-2907.8,0.00021999,2]
[320023513,1711061440490,-616.36,0.00021999,2]
[320023514,1711061440500,-2511.54,0.00021999,2]
[320023515,1711061440511,-500.0,0.00021999,2]
[320023516,1711061440521,-1887.47,0.00021999,2]
[320023517,1711061440532,-500.0,0.00021999,2]
[320023518,1711061440543,-500.0,0.00021999,2]
[320023519,1711061440553,-500.0,0.00021999,2]
[320023520,1711061440564,-500.0,0.00021999,2]
[320023521,1711061440575,-500.0,0.00021999,2]
[320023522,1711061440585,-500.0,0.00021999,2]
[320023523,1711061440595,-500.0,0.00021999,2]
[320023524,1711061440604,-489.12124181,0.00021999,2]
[320023525,1711061440615,-500.0,0.00021999,2]
[320023526,1711061440626,-1332.34,0.00021999,2]
[320023527,1711061440635,-783.41,0.00021999,2]
[320023528,1711061440645,-500.0,0.00021999,2]
[320023529,1711061440662,-500.0,0.00021999,2]
[320023530,1711061440673,-500.0,0.00021999,2]
[320023531,1711061440685,-156108.39576823,0.00022,2]
[320023544,1711061442622,-2593.11550636,0.00022,2]
[320023545,1711061442634,-12921.24466402,0.00022,2]
[320023546,1711061442646,-7005.47606976,0.00022,2]
[320023547,1711061442660,-15933.13653384,0.00022,2]
[320023548,1711061442672,-524.64599158,0.00022,2]
[320023549,1711061442683,-1085.25052183,0.00022,2]
[320023550,1711061442695,-1896.949314,0.00022,2]
[320023551,1711061442706,-620.99560194,0.00022,2]
[320023552,1711061442718,-301.00844795,0.00022,2]
[320023553,1711061442730,-460.421585,0.00022,2]
[320023554,1711061442741,-678.68828236,0.00022,2]
[320023555,1711061442753,-323.8,0.00022,2]
[320023556,1711061442775,-496.85070998,0.00022,2]
[320023557,1711061442790,-597.73420286,0.00022,2]
[320023558,1711061442802,-3068.24161024,0.00022,2]
[320023559,1711061442814,-3575.05768858,0.00022,2]
[320023560,1711061442827,-3854.00407314,0.00022,2]
[320023561,1711061442849,-792.29386324,0.00022,2]
[320023562,1711061442863,-3452.35741605,0.00022,2]
[320023563,1711061442874,-11764.56114113,0.00022,2]
[320023564,1711061442885,-800.23699406,0.00022,2]
[320023565,1711061442897,-2263.62903937,0.00022,2]
[320023566,1711061442912,-1157.88280958,0.00022,2]
[320023567,1711061442923,-2779.96768669,0.00022,2]
[320023568,1711061442936,-3586.337125,0.00022,2]
[320023569,1711061442949,-1266.11078973,0.00022,2]
[320023591,1711061443396,-984.32097765,0.00022,2]
[320023592,1711061443409,-432.89653833,0.00022,2]
[320023604,1711061445699,-255.25,0.000218,2]
[320023606,1711061445711,-481.8715413,0.000218,2]
[320023607,1711061445721,-6210.14,0.00021999,2]
[320023609,1711061445731,-500.0,0.00021999,2]
[320023611,1711061445740,-64030.0133257,0.00022,2]
[320023614,1711061445760,-1967.11957361,0.00022,2]
[320023615,1711061445773,-118606.06657033,0.00022,2]
[320023620,1711061445821,-282.26360807,0.00022,2]
[320023621,1711061445833,-1084.53827642,0.00022,2]
[320023626,1711061445881,-30441.14371208,0.00022,2]
[320023627,1711061445894,-3393.93265711,0.00022,2]
[320023630,1711061445909,-420.31696282,0.00022,2]
[320023633,1711061445940,-653.60137365,0.00022,2]
[320023674,1711061764088,201.68,0.00025627,120]
[320023675,1711061815878,-451.13524607,0.000165,2]
[320023676,1711061815902,-254.68,0.0001799,3]
[320023677,1711061815925,-764.04,0.0001799,3]
[320023678,1711061815951,-234.032207,0.00017998,2]
[320023679,1711061815975,-283.75260673,0.00017999,2]
[320023680,1711061816000,-300.0,0.00017999,2]
[320023681,1711061830833,234.032207,0.00017998,2]
[320023682,1711061841374,505.01630497,0.00017999,2]
[320023683,1711061849562,1274.41909867,0.00017999,2]
[320023684,1711061860340,234.032207,0.00017999,2]
[320023687,1711061996956,173.37677938,0.000179,2]
[320023688,1711062012130,189.1577894,0.000179,2]
[320023689,1711062045119,102.32555378,0.000179,2]
[320023713,1711062631873,-575.17710851,0.00017889,2]
[320023714,1711062631886,-70.85580122,0.00017889,2]
[320023715,1711062631895,-337.53974074,0.0001789,3]
[320023716,1711062631928,-171.82025926,0.0001789,3]
[320023717,1711062631937,-205.30807678,0.00017899,2]
[320023718,1711062631950,-94.69192322,0.00017899,2]
[320023719,1711062631959,-64.86438623,0.000179,2]
[320023720,1711062631968,-418.74371055,0.000179,2]
[320023721,1711062632048,-3276.895496,0.000179,2]
[320023758,1711062637930,-2139.09462408,0.000179,2]
[320023767,1711062638039,-31405.62409543,0.000179,2]
[320023768,1711062638051,-1450.95986378,0.000179,2]
[320023862,1711062639945,-686.70538567,0.000179,2]
[320023863,1711062639957,-33403.33675951,0.000179,2]
[320023864,1711062639969,-12863.21927959,0.000179,2]
[320023865,1711062640000,-1451.43655259,0.000179,2]
[320023866,1711062640012,-1691.83467225,0.000179,2]
[320023867,1711062640221,-629.50888,0.000179,2]
[320023878,1711062643305,-3874.52880084,0.000179,2]
[320023879,1711062643318,-5856.50383262,0.000179,2]
[320023880,1711062643332,-3352.0127489,0.000179,2]
[320023881,1711062643351,-3025.46559579,0.000179,2]
[320023882,1711062643362,-1078.42918292,0.000179,2]
[320023884,1711062643373,-327.97052567,0.000179,2]
[320023885,1711062643396,-944.03810536,0.000179,2]
[320023886,1711062644783,695.57482199,0.00015214,2]
[320023887,1711062645984,-1000.47847097,0.000179,2]
[320023888,1711062645995,-68558.15032482,0.000179,2]
[320023889,1711062646095,-18841.90134169,0.000179,2]
[320023890,1711062646104,-196.61,0.00017932,2]
[320023891,1711062646114,-45861.48865881,0.00018,2]
[320023892,1711062646153,-547.44,0.00018,2]
[320023893,1711062646166,-19501.01377015,0.00018,2]
[320023894,1711062670320,1121.52296928,0.00015214,2]
[320023895,1711063603305,354.48,0.00014983,2]
[320023896,1711063704812,161.34,0.00025115,120]
[320023914,1711063832019,-260.631371,0.00016654,2]
[320023915,1711063832083,-90.418629,0.00016654,2]
[320023916,1711063832094,-200.0,0.00016665,2]
[320023917,1711063832104,-170.47,0.00016712,2]
[320023918,1711063832114,-250.0,0.00016737,2]
[320023919,1711063832123,-161.34,0.00016743,2]
[320023920,1711063832132,-1.40401111,0.0001677,2]
[320023921,1711063832195,-148.59598889,0.0001677,2]
[320023922,1711063832204,-6170.9040111,0.00016786,2]
[320023923,1711063832215,-2534.7159889,0.00016786,2]
[320023924,1711063832224,-150.0,0.00016899,2]
[320023925,1711063832233,-180.0,0.000169,2]
[320023926,1711063832242,-1909.38,0.00016901,2]
[320023927,1711063832251,-1466.9040111,0.00016928,2]
[320023928,1711063832263,-11391.9459889,0.00016928,2]
[320023929,1711063832272,-250.0,0.00017034,2]
[320023930,1711063832282,-406.0,0.00017083,2]
[320023931,1711063832291,-165.31,0.00017107,2]
[320023932,1711063832300,-200.0,0.0001713,2]
[320023933,1711063832310,-264.28,0.0001718,2]
[320023934,1711063832319,-171.3252191,0.0001718,2]
[320023935,1711063832328,-485.67,0.0001721,2]
[320023936,1711063832338,-3192.42,0.0001721,2]
[320023937,1711063832347,-354.48,0.00017247,2]
[320023938,1711063832356,-256.0,0.00017482,2]
[320023939,1711063832366,-150.0,0.00017675,2]
[320023941,1711063832375,-1216.73937758,0.00017898,2]
[320023943,1711063832385,-155.0,0.00017898,2]
[320023944,1711063832395,-514.0354236,0.00017898,2]
[320023945,1711063832405,-5399.3959565,0.00017899,2]
[320023946,1711063832414,-6732.89274511,0.000179,2]
[320023949,1711063832438,-688.97717916,0.000179,2]
[320023996,1711063838049,-3293.69843146,0.000179,2]
[320023997,1711063838074,-3280.03637687,0.000179,2]
[320023998,1711063838086,-463.4202856,0.000179,2]
[320023999,1711063838098,-275.41526501,0.000179,2]
[320024000,1711063838115,-1871.43237019,0.000179,2]
[320024001,1711063838126,-1321.75173715,0.000179,2]
[320024002,1711063838138,-1130.60515198,0.000179,2]
[320024003,1711063838151,-1197.93357264,0.000179,2]
[320024004,1711063838164,-1267.65875993,0.000179,2]
[320024005,1711063838180,-1876.68369629,0.000179,2]
[320024006,1711063838193,-603.45575644,0.000179,2]
[320024007,1711063838206,-1143.706933,0.000179,2]
[320024008,1711063838218,-3682.18383996,0.000179,2]
[320024009,1711063838230,-10872.06418176,0.000179,2]
[320024010,1711063838247,-259.49297447,0.000179,2]
[320024011,1711063838260,-7445.04905851,0.000179,2]
[320024012,1711063838273,-7768.1384,0.000179,2]
[320024013,1711063838285,-7146.2938,0.000179,2]
[320024014,1711063838297,-19039.27397553,0.000179,2]
[320024015,1711063838308,-1120.363758,0.000179,2]
[320024016,1711063838321,-459.01463883,0.000179,2]
[320024017,1711063838342,-8572.30163621,0.000179,2]
[320024019,1711063838352,-2461.256948,0.000179,2]
[320024021,1711063838361,-199.19920449,0.000179,2]
[320024022,1711063838370,-152.86,0.00017956,2]
[320024023,1711063838380,-235.95798628,0.00017998,2]
[320024024,1711063838390,-155.55177531,0.00017998,2]
[320024025,1711063838399,-234.032207,0.00017998,2]
[320024026,1711063838408,-6319.49999999,0.00017999,2]
[320024028,1711063838418,-350.0190656,0.00017999,2]
[320024029,1711063838427,-1003.8895197,0.00017999,5]
[320024031,1711063838436,-401230.42356858,0.00018,2]
[320024033,1711063838448,-259.181997,0.00018,2]
[320024037,1711063840065,-2109.97814077,0.00018,2]
[320024038,1711063840077,-5441.758176,0.00018,2]
[320024039,1711063840089,-473.04997849,0.00018,2]
[320024040,1711063840102,-587.4769397,0.00018,2]
[320024041,1711063840116,-368.04046622,0.00018,2]
[320024042,1711063840129,-488.2776796,0.00018,2]
[320024043,1711063840142,-350.85007204,0.00018,2]
[320024044,1711063840182,-311.915,0.00018,2]
[320024045,1711063840195,-6855.79242032,0.00018,2]
[320024046,1711063840242,-267.97857409,0.00018,2]
[320024047,1711063840255,-3127.72034641,0.00018,2]
[320024048,1711063840266,-2141.24734228,0.00018,2]
[320024049,1711063840277,-624000.0,0.00018,2]
[320024050,1711063840361,-261.355,0.00018,2]
[320024051,1711063840372,-769.13994734,0.00018,2]
[320024052,1711063840426,-3182.60000012,0.00018,2]
[320024053,1711063840437,-13150.73150999,0.00018,2]
[320024054,1711063840449,-2098.28,0.00018,2]
[320024055,1711063840460,-4881.21895331,0.00018,2]
[320024056,1711063840471,-2647.86778908,0.00018,2]
[320024057,1711063840483,-64872.9732468,0.00018,2]
[320024058,1711063840495,-7013.09876583,0.00018,2]
[320024096,1711063843034,-607.70713175,0.00018,2]
[320024103,1711063843091,-3958.70039018,0.00018,2]
[320024126,1711063843366,-7391.86754443,0.00018,2]
[320024127,1711063843379,-915.93598291,0.00018,2]
[320024128,1711063843392,-515.811067,0.00018,2]
[320024129,1711063843403,-475.33246739,0.00018,2]
[320024130,1711063843496,-1694.81359973,0.00018,2]
[320024157,1711063846157,-1085.05908804,0.00018,2]
[320024165,1711063930572,350.0190656,0.00014398,2]
[320024167,1711063973554,8572.30163621,0.00014398,2]
[320024171,1711064917126,273.19,0.00025729,120]
[320024188,1711065032185,-319.03,0.00015332,2]
[320024190,1711065032195,-840.0,0.00017145,2]
[320024192,1711065032205,-2127.26,0.00017145,2]
[320024194,1711065032214,-203.0,0.00017153,2]
[320024196,1711065032223,-273.19,0.00017153,2]
[320024198,1711065032232,-275.8,0.00017207,2]
[320024200,1711065032241,-150.0,0.00017232,2]
[320024201,1711065032250,-9858.67,0.00017233,2]
[320024202,1711065032259,-250.0,0.00017233,2]
[320024203,1711065032268,-250.0,0.00017309,2]
[320024204,1711065032277,-160.0,0.00017456,2]
[320024205,1711065032286,-150.0,0.00017506,2]
[320024206,1711065032295,-163.85,0.00017564,2]
[320024207,1711065032305,-499.99,0.00017564,2]
[320024208,1711065032314,-319.03,0.00017596,2]
[320024209,1711065032323,-200.0,0.000177,6]
[320024210,1711065032332,-500.0,0.000178,6]
[320024211,1711065032341,-2461.256948,0.000179,2]
[320024212,1711065032350,-500.0,0.000179,2]
[320024213,1711065032359,-166.93340169,0.000179,2]
[320024214,1711065032369,-718.8533,0.000179,2]
[320024215,1711065032379,-1000.0,0.000179,2]
[320024216,1711065032389,-94825.6535,0.000179,2]
[320024217,1711065032398,-284.063,0.000179,2]
[320024218,1711065032407,-800.0,0.000179,6]
[320024219,1711065032417,-635.6421,0.000179,2]
[320024220,1711065032426,-218.70342345,0.000179,2]
[320024221,1711065032435,-235.95798628,0.00017998,2]
[320024222,1711065032445,-6319.49999999,0.00017999,2]
[320024223,1711065032454,-155.55177531,0.00017999,2]
[320024224,1711065032464,-1003.8895197,0.00017999,5]
[320024225,1711065032474,-250.0,0.00017999,2]
[320024226,1711065032483,-589234.8038582,0.00018,2]
[320024241,1711065032700,-329.85410199,0.00018,2]
[320024242,1711065032712,-4616.35839979,0.00018,2]
[320024243,1711065032739,-10134.4670585,0.00018,2]
[320024269,1711065038179,-450.0,0.00018,2]
[320024270,1711065038401,-420914.99191116,0.00018,2]
[320024271,1711065038412,-2758.465457,0.00018,2]
[320024272,1711065038424,-262.122003,0.00018,2]
[320024273,1711065038510,-13085.0,0.00018,2]
[320024289,1711065042570,-409.81704596,0.00018,2]
[320024290,1711065042627,-1044.67628817,0.00018,2]
[320024348,1711065043360,-1859.04150057,0.00018,2]
[320024442,1711065268771,404.02818898,0.00015,2]
[320024443,1711065295080,163.38,0.00014097,2]